bitfinex/quotes_BTCUSD_20250508
["timestamp","ask_amount","ask_price","bid_price","bid_amount"]
[1746663963547,0.2161217,97168.0,97166.0,0.00403711]
[1746663964012,0.2161217,97168.0,97165.0,0.06313132]
[1746663964213,0.2161217,97168.0,97164.0,0.06912008]
[1746663964408,0.2161217,97168.0,97166.0,0.00370068]
[1746663964614,0.2171217,97168.0,97165.0,0.21083526]
[1746663964864,0.2171217,97168.0,97167.0,0.00370068]
[1746663965067,0.2161217,97168.0,97165.0,0.20583526]
[1746663965275,0.2161217,97168.0,97165.0,0.21871137]
[1746663965492,0.2171217,97168.0,97165.0,0.21871137]
[1746663965700,0.01229145,97168.0,97167.0,0.04651116]
[1746663966071,0.19622227,97169.0,97167.0,0.04651116]
[1746663966272,0.19622227,97169.0,97167.0,0.05021184]
[1746663967032,0.01129145,97168.0,97167.0,0.05421184]
[1746663967551,0.01229145,97168.0,97167.0,0.05421184]
[1746663967972,0.001,97168.0,97167.0,0.05421184]
[1746663968199,0.001,97168.0,97167.0,0.08631184]
[1746663968393,0.001,97168.0,97167.0,0.09031184]
[1746663969012,0.21608532,97184.0,97179.0,0.01029028]
[1746663969244,0.21608532,97184.0,97181.0,0.0328]
[1746663969373,0.21608532,97184.0,97182.0,0.0328]
[1746663969579,0.21608532,97184.0,97182.0,0.03650319]
[1746663969773,0.21608589,97184.0,97183.0,0.0164]
[1746663970439,0.21608589,97184.0,97183.0,0.02010319]
[1746663970788,0.21608589,97184.0,97183.0,0.02110319]
[1746663970987,0.21608589,97184.0,97183.0,0.02210319]
[1746663971608,0.21608589,97184.0,97183.0,0.00570319]
[1746663972006,0.21608589,97184.0,97183.0,0.05221435]
[1746663972901,0.21608589,97184.0,97183.0,0.04851116]
[1746663974950,0.21608589,97184.0,97183.0,0.06779862]
[1746663987232,0.18390078,97184.0,97183.0,0.06779862]
[1746663987939,0.19419053,97184.0,97183.0,0.06779862]
[1746663990593,0.22469053,97184.0,97183.0,0.06779862]
[1746663992724,0.33158067,97184.0,97183.0,0.06779862]
[1746663994343,0.33158067,97184.0,97183.0,0.06679862]
[1746663994684,0.33158067,97184.0,97183.0,0.06579862]
[1746663996328,0.30108067,97184.0,97183.0,0.06579862]
[1746663996533,0.30108067,97184.0,97183.0,0.01928746]
[1746663998680,0.31658067,97184.0,97183.0,0.01928746]
[1746663998822,0.33308067,97184.0,97183.0,0.01928746]
[1746664000791,0.33308067,97184.0,97183.0,0.06579059]
[1746664009996,0.32280067,97184.0,97183.0,0.06579059]
[1746664011092,0.32280067,97184.0,97183.0,0.07543306]
[1746664014816,0.32280067,97184.0,97183.0,0.06579059]
[1746664015810,0.32280067,97184.0,97183.0,0.01928746]
[1746664022827,0.32280067,97184.0,97183.0,0.06576565]
[1746664027117,0.29080067,97184.0,97183.0,0.06576565]
[1746664027319,0.01028975,97184.0,97183.0,0.06576565]
[1746664027604,0.01028954,97186.0,97183.0,0.06576565]
[1746664027790,0.20579364,97185.0,97184.0,0.01928746]
[1746664027953,0.20579364,97185.0,97184.0,0.02296786]
[1746664028555,0.20579364,97185.0,97184.0,0.0036804]
[1746664028898,0.20579364,97185.0,97184.0,0.02296141]
[1746664029095,0.20579364,97185.0,97184.0,0.02596141]
[1746664029676,0.20579364,97185.0,97184.0,0.02896141]
[1746664030058,0.20579364,97185.0,97184.0,0.03859864]
[1746664030809,0.20579364,97185.0,97184.0,0.08507683]
[1746664031568,0.17360849,97185.0,97184.0,0.08507683]
[1746664033145,0.17360849,97185.0,97184.0,0.0754396]
[1746664034149,0.17360849,97185.0,97184.0,0.0717592]
[1746664037491,0.18940849,97185.0,97184.0,0.0717592]
[1746664038054,0.20728084,97185.0,97184.0,0.0717592]
[1746664038259,0.31417098,97185.0,97184.0,0.0717592]
[1746664038456,0.31159863,97185.0,97184.0,0.0717592]
[1746664038856,0.31159863,97185.0,97184.0,0.0687592]
[1746664039038,0.31159863,97185.0,97184.0,0.0657592]
[1746664039218,0.31159863,97185.0,97184.0,0.0697592]
[1746664039805,0.31159863,97185.0,97184.0,0.0677592]
[1746664040418,0.31159863,97185.0,97184.0,0.0657592]
[1746664041793,0.31159863,97185.0,97184.0,0.01928101]
[1746664045617,0.20582972,97168.0,97163.0,0.21613069]
[1746664045784,0.01029155,97167.0,97164.0,0.20583628]
[1746664045973,0.20582972,97168.0,97165.0,0.20948781]
[1746664046375,0.20582972,97168.0,97165.0,0.21977958]
[1746664046914,0.001,97167.0,97165.0,0.21977958]
[1746664047118,0.20583127,97167.0,97165.0,0.01394562]
[1746664047274,0.20583127,97167.0,97165.0,0.00365385]
[1746664047471,0.21612437,97168.0,97165.0,0.00765385]
[1746664047702,0.21612437,97168.0,97165.0,0.20948876]
[1746664047903,0.01029145,97168.0,97165.0,0.01394562]
[1746664048125,0.20583331,97166.0,97165.0,0.00765385]
[1746664048381,0.20583331,97166.0,97165.0,0.00365385]
[1746664048520,0.20583543,97165.0,97164.0,0.02292347]
[1746664048720,0.2161412,97159.0,97156.0,0.35029272]
[1746664048959,0.2161412,97159.0,97156.0,0.35074133]
[1746664049301,0.2161412,97159.0,97157.0,0.00367528]
[1746664050669,0.2161412,97159.0,97158.0,0.34]
[1746664050899,0.001,97159.0,97158.0,0.34]
[1746664051100,0.001,97159.0,97158.0,0.54585026]
[1746664051305,0.001,97159.0,97158.0,0.54952554]
[1746664051685,0.01029208,97162.0,97160.0,0.34]
[1746664051864,0.21613508,97162.0,97160.0,0.34]
[1746664052196,0.21613508,97162.0,97161.0,0.00367528]
[1746664053097,0.21613508,97162.0,97159.0,0.3502924]
[1746664053291,0.21613508,97162.0,97161.0,0.00367528]
[1746664053502,0.2058439,97161.0,97160.0,0.004]
[1746664054045,0.21613086,97164.0,97160.0,0.20984567]
[1746664054219,0.21613086,97164.0,97160.0,0.21352095]
[1746664054386,0.21613086,97164.0,97160.0,0.21981325]
[1746664054780,0.21613086,97164.0,97161.0,0.004]
[1746664055296,0.21613086,97164.0,97162.0,0.00367528]
[1746664055701,0.01029187,97164.0,97162.0,0.20584134]
[1746664055866,0.21612958,97164.0,97163.0,0.00367528]
[1746664056468,0.21612958,97164.0,97163.0,0.00371003]
[1746664056620,0.21612958,97164.0,97161.0,0.26658706]
[1746664056808,0.21612958,97164.0,97163.0,0.00371003]
[1746664057221,0.20584179,97162.0,97161.0,0.05045201]
[1746664057426,0.20584179,97162.0,97161.0,0.04645201]
[1746664057989,0.20584458,97161.0,97158.0,0.21614245]
[1746664058189,0.20584458,97161.0,97157.0,0.34]
[1746664058190,0.20584606,97160.0,97157.0,0.34]
[1746664058524,0.19424112,97161.0,97157.0,0.34]
[1746664058725,0.20585026,97158.0,97157.0,0.34]
[1746664058925,0.20585238,97157.0,97156.0,0.02366468]
[1746664060148,0.2058507,97158.0,97156.0,0.02366468]
[1746664060344,0.0102924,97159.0,97156.0,0.23351859]
[1746664060576,0.0102924,97159.0,97156.0,0.24381131]
[1746664060914,0.20585138,97158.0,97156.0,0.02366468]
[1746664061128,0.0102924,97159.0,97156.0,0.02766468]
[1746664061248,0.21614066,97159.0,97156.0,0.23351913]
[1746664061444,0.21614066,97159.0,97156.0,0.22951913]
[1746664061892,0.21614066,97159.0,97156.0,0.23351913]
[1746664062096,0.21614066,97159.0,97156.0,0.23651913]
[1746664062295,0.21614066,97159.0,97156.0,0.23351913]
[1746664062693,0.20585182,97158.0,97156.0,0.03066468]
[1746664062901,0.21614063,97159.0,97157.0,0.20585232]
[1746664065008,0.21614063,97159.0,97157.0,0.004]
[1746664065209,0.21614063,97159.0,97157.0,0.007]
[1746664066763,0.21614024,97161.0,97158.0,0.20585026]
[1746664067170,0.20584663,97160.0,97157.0,0.22314109]
[1746664067471,0.21613893,97160.0,97157.0,0.22314109]
[1746664067695,0.21613893,97160.0,97157.0,0.21914109]
[1746664068051,0.21613893,97160.0,97158.0,0.003]
[1746664068456,0.21613893,97160.0,97159.0,0.01926973]
[1746664069277,0.21613893,97160.0,97159.0,0.02300002]
[1746664070183,0.21613893,97160.0,97159.0,0.02600002]
[1746664070386,0.21613893,97160.0,97159.0,0.02900002]
[1746664074114,0.20585893,97160.0,97159.0,0.02900002]
[1746664078868,0.23825893,97160.0,97159.0,0.02900002]
[1746664079071,0.23825893,97160.0,97159.0,0.07169172]
[1746664080190,0.20606709,97160.0,97159.0,0.07169172]
[1746664082097,0.20606709,97160.0,97159.0,0.07541953]
[1746664086597,0.18996709,97160.0,97159.0,0.07541953]
[1746664087311,0.18996709,97160.0,97159.0,0.07441204]
[1746664090438,0.18996709,97160.0,97159.0,0.07068423]
[1746664090989,0.20656709,97160.0,97159.0,0.07068423]
[1746664092132,0.20914013,97160.0,97159.0,0.07068423]
[1746664093458,0.20914013,97160.0,97159.0,0.06768423]
[1746664093821,0.20914013,97160.0,97159.0,0.06968423]
[1746664094321,0.20914013,97160.0,97159.0,0.06668423]
[1746664094744,0.20914013,97160.0,97159.0,0.06868423]
[1746664100240,0.1769467,97160.0,97159.0,0.06868423]
[1746664101264,0.28323684,97160.0,97159.0,0.06868423]
[1746664101459,0.2806638,97160.0,97159.0,0.06868423]
[1746664101958,0.2806638,97160.0,97159.0,0.04842199]
[1746664102742,0.2806638,97160.0,97159.0,0.04642199]
[1746664103823,0.2866638,97160.0,97159.0,0.04742199]
[1746664104582,0.2896638,97160.0,97159.0,0.04742199]
[1746664104778,0.2866638,97160.0,97159.0,0.04742199]
[1746664105129,0.2926638,97160.0,97159.0,0.04842199]
[1746664105570,0.2926638,97160.0,97159.0,0.002]
[1746664111797,0.9748638,97160.0,97159.0,0.002]
[1746664119252,0.9425638,97160.0,97159.0,0.002]
[1746664119961,0.9425638,97160.0,97159.0,0.02124847]
[1746664121425,0.83567366,97160.0,97159.0,0.02124847]
[1746664123513,0.15347366,97160.0,97159.0,0.02124847]
[1746664129163,0.15604675,97160.0,97159.0,0.02124847]
[1746664134197,0.15347366,97160.0,97159.0,0.02124847]
[1746664136827,0.012,97160.0,97159.0,0.05324847]
[1746664137244,0.012,97160.0,97159.0,0.05708696]
[1746664137702,0.006,97160.0,97159.0,0.6019351]
[1746664137938,0.006,97160.0,97159.0,0.61155871]
[1746664138141,0.20580337,97181.0,97177.0,0.23761001]
[1746664138257,0.20580666,97179.0,97177.0,0.0318]
[1746664138461,0.88800789,97178.0,97177.0,0.03562614]
[1746664138685,0.88800789,97178.0,97177.0,0.05487461]
[1746664139384,0.88800789,97178.0,97177.0,0.03877461]
[1746664139605,0.88800789,97178.0,97177.0,0.02307461]
[1746664140692,0.88900789,97178.0,97177.0,0.02607461]
[1746664140976,0.88900789,97178.0,97177.0,0.07246172]
[1746664141183,0.89000789,97178.0,97177.0,0.07646172]
[1746664141583,0.20780789,97178.0,97177.0,0.07606369]
[1746664148700,0.20780789,97178.0,97177.0,0.12443725]
[1746664150012,0.002,97178.0,97177.0,0.33024726]
[1746664150218,0.20780789,97178.0,97177.0,0.12443725]
[1746664150874,0.20780789,97178.0,97177.0,0.02967658]
[1746664151878,0.002,97178.0,97177.0,0.23548659]
[1746664152104,0.002,97178.0,97177.0,0.26728659]
[1746664152882,0.002,97178.0,97177.0,0.27689653]
[1746664153288,0.002,97178.0,97177.0,0.26139653]
[1746664153490,0.002,97178.0,97177.0,0.24509653]
[1746664156248,0.002,97178.0,97177.0,0.29133996]
[1746664156840,0.21608511,97184.0,97181.0,0.20580058]
[1746664157247,0.21608511,97184.0,97182.0,0.02292288]
[1746664157742,0.21608511,97184.0,97183.0,0.01924159]
[1746664158373,0.21608511,97184.0,97183.0,0.02292288]
[1746664158844,0.21708511,97184.0,97183.0,0.02292288]
[1746664159270,0.1849012,97184.0,97183.0,0.02292288]
[1746664159500,0.1839012,97184.0,97183.0,0.02292288]
[1746664159912,0.19519095,97184.0,97183.0,0.02592288]
[1746664160798,0.19519095,97184.0,97183.0,0.02892288]
[1746664162007,0.19519095,97184.0,97183.0,0.07098586]
[1746664163723,0.19519095,97184.0,97183.0,0.0805958]
[1746664165002,0.001,97184.0,97183.0,0.28639311]
[1746664170809,0.001,97184.0,97183.0,0.34780442]
[1746664171005,0.001,97184.0,97183.0,0.36430442]
[1746664171573,0.0102887,97194.0,97191.0,0.21606761]
[1746664171778,0.002,97195.0,97194.0,0.20577401]
[1746664172090,0.002,97195.0,97194.0,0.20939679]
[1746664172310,0.002,97195.0,97194.0,0.23824832]
[1746664172952,0.00308307,97195.0,97194.0,0.24124832]
[1746664173523,0.00308307,97195.0,97194.0,0.27414832]
[1746664173683,0.00308307,97195.0,97194.0,0.27614832]
[1746664174679,0.00208307,97195.0,97194.0,0.77114832]
[1746664174813,0.00208307,97195.0,97194.0,0.73824832]
[1746664175024,0.00308307,97195.0,97194.0,0.74324832]
[1746664175230,0.00308307,97195.0,97194.0,0.78955963]
[1746664176206,0.00408307,97195.0,97194.0,0.79655963]
[1746664176781,0.00308307,97195.0,97194.0,0.78955963]
[1746664177053,0.00408307,97195.0,97194.0,0.79555963]
[1746664178744,0.21604534,97202.0,97199.0,0.20576142]
[1746664179174,0.21604534,97202.0,97200.0,0.00360015]
[1746664179661,0.21604534,97202.0,97201.0,0.00960994]
[1746664179793,0.21704534,97202.0,97201.0,0.02885153]
[1746664180151,0.21704534,97202.0,97201.0,0.03245168]
[1746664180347,0.21604534,97202.0,97201.0,0.03245168]
[1746664180731,0.21704534,97202.0,97201.0,0.03245168]
[1746664181109,0.21604534,97202.0,97201.0,0.03245168]
[1746664181320,0.18386708,97202.0,97201.0,0.03245168]
[1746664181516,0.01028764,97204.0,97201.0,0.03245168]
[1746664181716,0.01028753,97205.0,97202.0,0.00960994]
[1746664182057,0.004,97209.0,97208.0,0.20574438]
[1746664182444,0.004,97209.0,97208.0,0.22498597]
[1746664182615,0.004,97209.0,97208.0,0.23819606]
[1746664183431,0.004,97209.0,97208.0,0.24219606]
[1746664183651,0.004,97209.0,97208.0,0.03645168]
[1746664184255,0.004,97209.0,97208.0,0.03845168]
[1746664184794,0.24134226,97209.0,97208.0,0.03845168]
[1746664185477,0.24134226,97209.0,97208.0,0.02884174]
[1746664186604,0.24134226,97209.0,97208.0,0.07515305]
[1746664189455,0.24134226,97209.0,97208.0,0.02884174]
[1746664193136,0.0356,97209.0,97208.0,0.02884174]
[1746664193261,0.004,97209.0,97208.0,0.23458612]
[1746664193691,0.004,97209.0,97208.0,0.28089106]
[1746664194663,0.004,97209.0,97208.0,0.290501]
[1746664195082,0.004,97209.0,97208.0,0.11002682]
[1746664195291,0.004,97209.0,97208.0,0.11324715]
[1746664204420,0.0327,97213.0,97211.0,0.20573706]
[1746664204615,0.0165,97212.0,97211.0,0.20573706]
[1746664205850,0.21601465,97216.0,97213.0,0.20573372]
[1746664206053,0.0165,97215.0,97214.0,0.20573038]
[1746664206419,0.0165,97215.0,97213.0,0.20573372]
[1746664206612,0.23823038,97215.0,97213.0,0.20573372]
[1746664206949,0.0155,97214.0,97213.0,0.20573372]
[1746664207314,0.0155,97214.0,97212.0,0.01028679]
[1746664207513,0.21601685,97215.0,97212.0,0.01028679]
[1746664207716,0.23743168,97214.0,97213.0,0.02024458]
[1746664208428,0.0317,97214.0,97213.0,0.02124458]
[1746664208644,0.01028647,97215.0,97213.0,0.02024458]
[1746664208866,0.02688647,97215.0,97214.0,0.01924458]
[1746664209363,0.2480165,97215.0,97214.0,0.01924458]
[1746664210297,0.2480165,97215.0,97214.0,0.02024458]
[1746664211215,0.0166,97215.0,97214.0,0.22597626]
[1746664211410,0.0154,97218.0,97215.0,0.20572956]
[1746664211714,0.0154,97218.0,97215.0,0.21601603]
[1746664211901,0.0154,97218.0,97216.0,0.01924458]
[1746664212121,0.0154,97218.0,97217.0,0.20572533]
[1746664212458,0.0154,97218.0,97217.0,0.22496991]
[1746664214268,0.002,97220.0,97219.0,0.2057211]
[1746664214772,0.002,97220.0,97219.0,0.22496568]
[1746664215410,0.002,97220.0,97219.0,0.22788341]
[1746664215636,0.003,97220.0,97219.0,0.22788341]
[1746664217220,0.003,97220.0,97219.0,0.23750405]
[1746664218841,0.0349,97220.0,97219.0,0.23750405]
[1746664219055,0.0352,97220.0,97219.0,0.23750405]
[1746664219621,0.0195,97220.0,97219.0,0.23750405]
[1746664220915,0.0352,97220.0,97219.0,0.23750405]
[1746664222316,0.0352,97220.0,97219.0,0.22788341]
[1746664223429,0.0352,97220.0,97219.0,0.27424143]
[1746664223642,0.24091898,97220.0,97219.0,0.06852033]
[1746664224051,0.24091898,97220.0,97219.0,0.0656026]
[1746664225657,0.2057338,97213.0,97210.0,0.32000887]
[1746664225861,0.0328,97212.0,97210.0,0.21602712]
[1746664226036,0.0328,97212.0,97211.0,0.0028995]
[1746664226904,0.2057338,97213.0,97211.0,0.0131864]
[1746664227807,0.2057338,97213.0,97211.0,0.0141864]
[1746664228169,0.2057338,97213.0,97211.0,0.0131864]
[1746664228367,0.2057338,97213.0,97211.0,0.0141864]
[1746664228936,0.2057338,97213.0,97211.0,0.0161864]
[1746664229172,0.2057338,97213.0,97211.0,0.2219241]
[1746664229459,0.01028658,97214.0,97211.0,0.2219241]
[1746664230195,0.21601879,97214.0,97211.0,0.2219241]
[1746664230533,0.21601826,97214.0,97212.0,0.20573563]
[1746664230900,0.21601826,97214.0,97213.0,0.0028995]
[1746664232667,0.21601826,97214.0,97213.0,0.001]
[1746664232977,0.21601826,97214.0,97213.0,0.00391241]
[1746664233196,0.21601826,97214.0,97213.0,0.001]
[1746664233420,0.21601826,97214.0,97213.0,0.00491241]
[1746664233621,0.21601826,97214.0,97213.0,0.01162026]
[1746664233840,0.01028658,97214.0,97213.0,0.01453267]
[1746664236268,0.21601752,97215.0,97213.0,0.01453267]
[1746664236833,0.20573168,97214.0,97213.0,0.01453267]
[1746664237034,0.21601752,97215.0,97213.0,0.00491241]
[1746664237319,0.20573168,97214.0,97213.0,0.00491241]
[1746664237862,0.23171638,97215.0,97213.0,0.02315709]
[1746664238306,0.23171638,97215.0,97214.0,0.01924468]
[1746664238684,0.23171638,97215.0,97214.0,0.02215709]
[1746664239626,0.23171638,97215.0,97214.0,0.02315709]
[1746664240411,0.21601638,97215.0,97214.0,0.02315709]
[1746664242842,0.21601638,97215.0,97214.0,0.06955156]
[1746664245927,0.21601638,97215.0,97214.0,0.07917485]
[1746664246333,0.24751638,97215.0,97214.0,0.07917485]
[1746664246669,0.24751638,97215.0,97214.0,0.07626244]
[1746664248003,0.24751638,97215.0,97214.0,0.06663915]
[1746664248922,0.21534068,97215.0,97214.0,0.06663915]
[1746664249768,0.22562715,97215.0,97214.0,0.06663915]
[1746664249970,0.20574453,97208.0,97206.0,0.23104851]
[1746664250192,0.20574453,97208.0,97207.0,0.00292511]
[1746664251667,0.21602976,97209.0,97207.0,0.00292511]
[1746664252509,0.21602976,97209.0,97207.0,0.00592511]
[1746664253058,0.21602976,97209.0,97207.0,0.00292511]
[1746664253600,0.21602943,97209.0,97207.0,0.00492511]
[1746664254101,0.21602943,97209.0,97207.0,0.00292511]
[1746664254312,0.21602943,97209.0,97207.0,0.00492511]
[1746664254605,0.21602943,97209.0,97207.0,0.00692511]
[1746664255314,0.01028711,97209.0,97207.0,0.21267098]
[1746664255527,0.21602701,97211.0,97208.0,0.01028721]
[1746664255736,0.0153,97218.0,97217.0,0.20572533]
[1746664255931,0.20571276,97223.0,97217.0,0.21601159]
[1746664256131,0.0255852,97227.0,97219.0,0.2057211]
[1746664256310,0.2159953,97225.0,97219.0,0.2057211]
[1746664256506,0.01028542,97225.0,97219.0,0.2057211]
[1746664256831,0.01028573,97222.0,97219.0,0.20864621]
[1746664257038,0.01028563,97223.0,97219.0,0.20864621]
[1746664257179,0.21599882,97223.0,97219.0,0.20864621]
[1746664257380,0.021,97220.0,97219.0,0.20864621]
[1746664257798,0.021,97220.0,97219.0,0.00292511]
[1746664258325,0.22671898,97220.0,97219.0,0.00292511]
[1746664258537,0.021,97220.0,97218.0,0.20572292]
[1746664258747,0.021,97220.0,97219.0,0.00292511]
[1746664258959,0.022,97220.0,97219.0,0.00292511]
[1746664259137,0.22771898,97220.0,97219.0,0.00292511]
[1746664259341,0.22671898,97220.0,97217.0,0.21600748]
[1746664259548,0.22671898,97220.0,97218.0,0.00292511]
[1746664259782,0.22771898,97220.0,97218.0,0.00292511]
[1746664260130,0.22671898,97220.0,97218.0,0.00292511]
[1746664260799,0.021,97220.0,97218.0,0.00292511]
[1746664260970,0.02,97220.0,97219.0,0.2057211]
[1746664261328,0.02,97220.0,97218.0,0.00292511]
[1746664261329,0.021,97220.0,97218.0,0.20572299]
[1746664261500,0.021,97220.0,97219.0,0.00292511]
[1746664261650,0.22671898,97220.0,97219.0,0.00292511]
[1746664261999,0.20572173,97219.0,97217.0,0.01028626]
[1746664262179,0.20572173,97219.0,97218.0,0.00290804]
[1746664262756,0.2057211,97219.0,97218.0,0.02214836]
[1746664263160,0.2067211,97219.0,97218.0,0.02214836]
[1746664263776,0.2067211,97219.0,97218.0,0.03176886]
[1746664264462,0.2067211,97219.0,97218.0,0.02886082]
[1746664264877,0.2077211,97219.0,97218.0,0.02886082]
[1746664265083,0.2077211,97219.0,97218.0,0.03176886]
[1746664265084,0.2240211,97219.0,97218.0,0.03176886]
[1746664265469,0.2240211,97219.0,97218.0,0.02886082]
[1746664266253,0.2400211,97219.0,97218.0,0.01924032]
[1746664267795,0.2400211,97219.0,97218.0,0.06563534]
[1746664271603,0.20784595,97219.0,97218.0,0.06563534]
[1746664274256,0.20789212,97219.0,97218.0,0.06563534]
[1746664274670,0.31478226,97219.0,97218.0,0.06563534]
[1746664277389,0.31478226,97219.0,97218.0,0.11412512]
[1746664282129,0.31478226,97219.0,97218.0,0.01924032]
[1746664283157,0.65478226,97219.0,97218.0,0.01924032]
[1746664284076,0.57752533,97217.0,97216.0,0.04848978]
[1746664284300,0.68441547,97217.0,97216.0,0.04848978]
[1746664285041,1.36661547,97217.0,97216.0,0.04848978]
[1746664285676,1.37447677,97217.0,97216.0,0.04848978]
[1746664285901,1.39147677,97217.0,97216.0,0.05048978]
[1746664286186,1.38347677,97217.0,97216.0,0.04948978]
[1746664286589,1.39247677,97217.0,97216.0,0.002]
[1746664286987,1.38347677,97217.0,97216.0,0.001]
[1746664287304,1.39347677,97217.0,97216.0,0.002]
[1746664297983,1.35381547,97217.0,97216.0,0.002]
[1746664298348,1.01381547,97217.0,97216.0,0.002]
[1746664309858,1.04581547,97217.0,97216.0,0.002]
[1746664310333,1.38581547,97217.0,97216.0,0.002]
[1746664314494,1.35381547,97217.0,97216.0,0.002]
[1746664320522,1.35381547,97217.0,97216.0,0.02122931]
[1746664325004,1.01381547,97217.0,97216.0,0.002]
[1746664326156,0.22472533,97217.0,97216.0,0.0212244]
[1746664331211,0.22472533,97217.0,97216.0,0.05222463]
[1746664331360,0.00571533,97217.0,97216.0,0.0212244]
[1746664331559,0.00828706,97217.0,97216.0,0.0212244]
[1746664332321,0.21401239,97217.0,97216.0,0.0212244]
[1746664332464,0.21144066,97217.0,97216.0,0.0212244]
[1746664338402,0.3498308,97217.0,97216.0,0.0212244]
[1746664340156,0.3183308,97217.0,97216.0,0.0212244]
[1746664345870,0.3489308,97217.0,97216.0,0.0212244]
[1746664348079,0.3489308,97217.0,97216.0,0.002]
[1746664348605,0.6889308,97217.0,97216.0,0.002]
[1746664349521,0.6889308,97217.0,97216.0,0.02124841]
[1746664350496,0.6889308,97217.0,97216.0,0.002]
[1746664351494,1.3711308,97217.0,97216.0,0.002]
[1746664354144,1.0311308,97217.0,97216.0,0.002]
[1746664357797,1.02541547,97217.0,97216.0,0.001]
[1746664358165,1.03141547,97217.0,97216.0,0.002]
[1746664358603,1.02541547,97217.0,97216.0,0.001]
[1746664359236,0.99481547,97217.0,97216.0,0.001]
[1746664360497,1.00081547,97217.0,97216.0,0.002]
[1746664371204,1.00081547,97217.0,97216.0,0.02123645]
[1746664372249,1.00081547,97217.0,97216.0,0.002]
[1746664373276,1.00081547,97217.0,97216.0,0.02124087]
[1746664374468,1.00081547,97217.0,97199.0,0.21605082]
[1746664374469,0.21603849,97205.0,97199.0,0.21605082]
[1746664374772,0.01028753,97205.0,97201.0,0.00299162]
[1746664375081,0.01028764,97204.0,97201.0,0.00299162]
[1746664375420,0.2160424,97204.0,97201.0,0.00299162]
[1746664375673,0.20575559,97203.0,97201.0,0.00299162]
[1746664376657,0.20575708,97202.0,97201.0,0.00399162]
[1746664377564,0.20575708,97202.0,97201.0,0.03559162]
[1746664377766,0.20575708,97202.0,97201.0,0.03459162]
[1746664378834,0.20675708,97202.0,97201.0,0.08106937]
[1746664379298,0.20675708,97202.0,97201.0,0.08206937]
[1746664379476,0.001,97202.0,97201.0,0.28782857]
[1746664379677,0.001,97202.0,97201.0,0.08106937]
[1746664380603,0.003,97202.0,97201.0,0.08206937]
[1746664381633,0.20875708,97202.0,97201.0,0.08206937]
[1746664382001,0.003,97202.0,97201.0,0.28782857]
[1746664383652,0.003,97202.0,97201.0,0.78782857]
[1746664384071,0.001,97202.0,97201.0,0.78682857]
[1746664384480,0.001,97202.0,97201.0,0.79182857]
[1746664384933,0.001,97202.0,97201.0,0.79882857]
[1746664384934,0.002,97202.0,97201.0,0.79882857]
[1746664385142,0.001,97202.0,97201.0,0.79182857]
[1746664385362,0.002,97202.0,97201.0,0.79882857]
[1746664385865,0.001,97202.0,97201.0,0.79382857]
[1746664386203,0.002,97202.0,97201.0,0.79982857]
[1746664386617,0.002,97202.0,97201.0,0.81904701]
[1746664387809,0.0004485,97202.0,97201.0,0.81904701]
[1746664389872,0.18430174,97210.0,97207.0,0.20574545]
[1746664390080,0.18430174,97210.0,97208.0,0.00295108]
[1746664390465,0.19458874,97210.0,97209.0,0.01921844]
[1746664390969,0.19658874,97210.0,97209.0,0.02216952]
[1746664391416,0.19558874,97210.0,97209.0,0.01921844]
[1746664391605,0.19658874,97210.0,97209.0,0.02521844]
[1746664391802,0.21228874,97210.0,97209.0,0.02521844]
[1746664392026,0.22738874,97210.0,97209.0,0.02521844]
[1746664392203,0.22638874,97210.0,97209.0,0.02521844]
[1746664392606,0.22738874,97210.0,97209.0,0.03021844]
[1746664392983,0.19658874,97210.0,97209.0,0.03021844]
[1746664393651,0.002,97210.0,97209.0,0.03316952]
[1746664394052,0.002,97210.0,97209.0,0.23891178]
[1746664395244,0.002,97210.0,97209.0,0.03316952]
[1746664396548,0.002,97210.0,97209.0,0.07948808]
[1746664398384,0.20774015,97210.0,97209.0,0.07948808]
[1746664398600,0.002,97210.0,97209.0,0.07948808]
[1746664399798,0.002,97210.0,97209.0,0.28523034]
[1746664401004,0.002,97210.0,97209.0,0.78523034]
[1746664403646,0.0325,97210.0,97209.0,0.57948808]
[1746664403838,0.0325,97210.0,97209.0,0.07948808]
[1746664403839,0.23824015,97210.0,97209.0,0.07948808]
[1746664404047,0.23824015,97210.0,97209.0,0.076537]
[1746664405611,0.23824015,97210.0,97209.0,0.07946378]
[1746664406732,0.01028647,97215.0,97209.0,0.28520604]
[1746664406952,0.02,97220.0,97209.0,0.00292678]
[1746664407158,0.22571985,97220.0,97216.0,0.01028637]
[1746664407385,4.617e-05,97219.0,97218.0,0.20572321]
[1746664407596,4.617e-05,97219.0,97218.0,0.20846593]
[1746664408211,0.00104617,97219.0,97218.0,0.20846593]
[1746664408630,0.00404617,97219.0,97218.0,0.20946593]
[1746664410061,0.00304617,97219.0,97218.0,0.20946593]
[1746664410447,0.00504617,97219.0,97218.0,0.20946593]
[1746664414327,0.00504617,97219.0,97218.0,0.24066593]
[1746664414983,0.00204617,97219.0,97218.0,0.23966593]
[1746664415421,0.00304617,97219.0,97218.0,0.57966593]
[1746664416320,0.00304617,97219.0,97218.0,1.07966593]
[1746664416873,0.00104617,97219.0,97218.0,1.07966593]
[1746664417277,0.00204617,97219.0,97218.0,1.08566593]
[1746664417903,0.01028436,97235.0,97228.0,0.20570206]
[1746664418231,0.2159723,97235.0,97228.0,0.20831368]
[1746664418635,0.01028436,97235.0,97228.0,0.00261162]
[1746664418881,0.01028457,97233.0,97228.0,0.20831368]
[1746664419080,0.01028467,97232.0,97228.0,0.20831368]
[1746664419255,0.21597894,97232.0,97228.0,0.20831368]
[1746664419456,0.21597894,97232.0,97228.0,0.2275254]
[1746664420233,0.01028467,97232.0,97228.0,0.2305254]
[1746664420433,0.01028478,97231.0,97228.0,0.2305254]
[1746664420673,0.005,97229.0,97228.0,0.2335254]
[1746664420848,0.005,97229.0,97228.0,0.24312897]
[1746664421932,0.005,97229.0,97228.0,0.03742691]
[1746664422651,0.005,97229.0,97228.0,0.24312897]
[1746664424041,0.21069994,97229.0,97228.0,0.03742691]
[1746664424338,0.005,97229.0,97228.0,0.24312897]
[1746664424932,0.22679994,97229.0,97228.0,0.03742691]
[1746664425132,0.24299994,97229.0,97228.0,0.03742691]
[1746664425324,0.24299994,97229.0,97228.0,0.08372748]
[1746664425736,0.24299994,97229.0,97228.0,0.07412391]
[1746664426071,0.24299994,97229.0,97228.0,0.07151229]
[1746664430987,0.24299994,97229.0,97228.0,0.07391277]
[1746664432776,0.24299994,97229.0,97228.0,0.08351634]
[1746664434651,0.24299994,97229.0,97228.0,0.09126044]
[1746664439198,0.24299994,97229.0,97228.0,0.08885996]
[1746664439400,0.24299994,97229.0,97228.0,0.09127949]
[1746664440374,0.21082951,97229.0,97228.0,0.09127949]